Cogmind - Beta 9.6 @@@ ROGUE MODE // 2020.08.11 @ 14:49:35 Player: Trione Result: Destroyed by G-47 Trooper with Particle Gun Performance ------------- Evolutions (1) 500 Regions Visited (6) 1200 Robots Destroyed (99) 495 Value Destroyed (1652) 1652 Prototype IDs (3) 60 Alien Tech Used (0) 0 Bonus (81) 81 TOTAL SCORE: 3988 Bonus ------- High Alert Combat Kills 81 Cogmind --------- Core Integrity 0/400 Matter 141/300 Energy 94/160 System Corruption 7% Temperature Cool (18) Movement Rolling (140) Ox6 Location -8/Mines Parts ------- > --- POWER (1) -------- Light Nuclear Core > --- PROPULSION (2) --- Wheel Wheel > --- UTILITY (4) ------ High-capacity Storage Unit Humpback > --- WEAPON (2) ------- Datajack Ripper > --- INVENTORY (32) --- Light Treads Wheel Compact Wheel Large Storage Unit Large Storage Unit Large Storage Unit Large Storage Unit Large Storage Unit Humpback Humpback Advanced Signal Interpreter Advanced Signal Interpreter Light Armor Plating Light Armor Plating Light Armor Plating EM Pulse Gun Ion Cannon Ion Cannon Ion Cannon Improved Assault Rifle Missile Launcher Missile Launcher Missile Launcher Mining Laser Peak State ------------ > --- POWER ------------ Light Nuclear Core > --- PROPULSION ------- Compact Wheel Compact Wheel > --- UTILITY ---------- Large Storage Unit Large Storage Unit Large Storage Unit Hardened Light Armor Plating > --- WEAPON ----------- Ion Cannon Improved Assault Rifle > --- INVENTORY -------- Light Nuclear Core Light Nuclear Core Light Treads Wheel Compact Wheel Large Storage Unit Large Storage Unit Light Armor Plating Light Armor Plating Light Armor Plating Hardened Light Armor Plating EM Pulse Gun Ion Cannon Ion Cannon Ion Cannon EMP Blaster Mini Grenade Launcher Missile Launcher Missile Launcher Missile Launcher Datajack Mining Laser [Rating: 20] Favorites ----------- Power Light Nuclear Core Engine Ion Engine Power Core Light Nuclear Core Propulsion Wheel Treads Light Treads Wheel Wheel Utility Large Storage Unit Device Improved Terrain Scanner Storage Large Storage Unit Protection Light Armor Plating Weapon Particle Gun Energy Gun Particle Gun Energy Cannon Advanced Beam Cannon Ballistic Gun Improved Assault Rifle Launcher Missile Launcher Special Weapon Mining Laser Slashing Weapon Ripper Special Melee Weapon Datajack Build | -11 -10 -10 -9 -9 -9 -8 ------- Run | Scr Mat Min Mat Min Exi Min Slots Evolved 2 | . . . 2 . . . Power . | . . . . . . . Propulsion . | . . . . . . . Utility 2 | . . . 2 . . . Weapon . | . . . . . . . Parts Attached 81 | 6 13 2 41 13 5 1 Power 6 | 1 1 . 2 1 . 1 Engine 2 | 1 1 . . . . . Core 4 | . . . 2 1 . 1 Reactor . | . . . . . . . Propulsion 22 | 2 3 . 12 5 . . Treads 3 | . . . 2 1 . . Leg . | . . . . . . . Wheel 19 | 2 3 . 10 4 . . Hover . | . . . . . . . Flight . | . . . . . . . Utility 13 | 1 2 . 6 1 3 . Device 1 | . . . 1 . . . Storage 8 | 1 2 . 3 . 2 . Processor . | . . . . . . . Hackware . | . . . . . . . Protection 4 | . . . 2 1 1 . Artifact . | . . . . . . . Weapon 40 | 2 7 2 21 6 2 . Energy Gun 12 | 1 4 1 6 . . . Energy Cannon 6 | . . . 5 1 . . Ballistic Gun 8 | 1 1 . 4 2 . . Ballistic Cannon . | . . . . . . . Launcher 11 | . 2 1 5 3 . . Special Weapon 1 | . . . 1 . . . Impact Weapon . | . . . . . . . Slashing Weapon 1 | . . . . . 1 . Piercing Weapon . | . . . . . . . Special Melee Weapon 1 | . . . . . 1 . Unidentified Prototypes 3 | . . . 3 . . . Parts Lost 23 | . 4 . 12 6 . 1 Power 4 | . 1 . 1 1 . 1 Propulsion 8 | . 2 . 4 2 . . Utility 2 | . . . 1 1 . . Weapon 9 | . 1 . 6 2 . . Highest Loss Streak 5 | . 3 . 3 5 . 1 Average Slot Usage (%) 97 | . 94 100 98 98 92 . Engine 4 | . 13 14 2 . . . Core 6 | . . . 8 10 11 . Wheel 22 | . 27 28 19 21 22 . Device 3 | . . . 6 . . . Storage 30 | . 23 28 32 33 28 . Protection 4 | . . . 3 11 8 . Energy Gun 9 | . 22 23 7 . . . Energy Cannon 4 | . . . 5 10 . . Ballistic Gun 7 | . 5 . 8 10 . . Slashing Weapon 1 | . . . . . 11 . Special Melee Weapon 1 | . . . . . 11 . Naked Turns . | . . . . . . . Heaviest Build 124 | 11 43 43 67 67 124 124 Greatest Support 32 | 32 32 26 32 32 20 20 Greatest Overweight (x) 6 | . 4 1 5 3 6 6 Average Overweight (x) 2 | . . 1 2 2 3 6 Largest Inventory Capacity 32 | 6 16 16 22 22 32 32 Average Capacity 19 | 5 13 16 21 22 26 32 Most Carried 27 | 6 16 16 22 22 27 26 Average Carried 16 | 3 11 16 18 18 20 25 Final Capacity 32 | 6 16 16 22 22 32 32 Final Carried 26 | 6 16 16 22 19 26 26 Class Distribution -------------------- 71% | Hauler-Mutant 28% | Mutant Dominant Class ---------------- Mutant | -10/Materials Mutant | -10/Mines Hauler-Mutant | -9/Materials Hauler-Mutant | -9/Mines Hauler-Mutant | -9/Exiles Hauler-Mutant | -8/Mines Resources | -11 -10 -10 -9 -9 -9 -8 ----------- Run | Scr Mat Min Mat Min Exi Min Matter Collected 1412 | 264 139 . 781 228 . . Remotely . | . . . . . . . Salvage Created 2379 | 96 367 6 1694 216 . . Parts 169 | 6 31 3 123 6 . . Haulers Intercepted 7 | . 2 . 5 . . . Recyclers Shooed 2 | . . . 1 1 . . Parts Field Recycled . | . . . . . . . Retrieved Matter . | . . . . . . . Parts Self-Destructed . | . . . . . . . Prevented . | . . . . . . . Kills | -11 -10 -10 -9 -9 -9 -8 ------- Run | Scr Mat Min Mat Min Exi Min Combat Hostiles Destroyed 72 | . 10 3 34 25 . . Guns 28 | . 9 . 18 1 . . Cannons 6 | . . . 4 2 . . AOE 38 | . 1 3 12 22 . . Classes Destroyed 13 | 2 4 . 5 2 . . Worker 7 | . . . 7 . . . Builder 1 | . . . 1 . . . Tunneler 2 | 1 . . 1 . . . Hauler 7 | . 2 . 5 . . . Recycler 4 | 1 . . 2 1 . . Mechanic 1 | . . . 1 . . . Operator 1 | . . . 1 . . . Watcher 4 | . 2 . 2 . . . Swarmer 23 | . 6 3 10 4 . . Grunt 20 | . 4 . 16 . . . Sentry 8 | . . . 8 . . . Demolisher 2 | . . . . 2 . . Assembled 19 | . . . . 19 . . Best Kill Streak 19 | 2 3 3 9 19 . . Combat Bots Only 19 | . 3 3 5 19 . . Max Kills in Single Turn 6 | 1 1 2 4 6 . . Gunslinging . | . . . . . . . Exploded 6 | . 1 2 3 6 . . Melee . | . . . . . . . Uniques/NPCs Destroyed . | . . . . . . . Combat | -11 -10 -10 -9 -9 -9 -8 -------- Run | Scr Mat Min Mat Min Exi Min Damage Taken 2959 | . 490 25 1388 932 . 124 Core 548 | . 136 8 245 112 . 47 Absorbed by Shields . | . . . . . . . Core Remaining (%) 71 | 100 . 42 . . . . Volleys Fired 193 | 4 43 2 117 27 . . Largest 2 | 2 2 1 2 2 . . Hottest 133 | 60 130 30 133 83 . . Shots Fired 346 | 8 85 2 211 40 . . Gun 271 | 8 84 . 166 13 . . Cannon 47 | . . . 34 13 . . Launcher 28 | . 1 2 11 14 . . Special . | . . . . . . . Kinetic 127 | 4 24 . 86 13 . . Thermal 158 | 4 55 . 86 13 . . Explosive 25 | . 1 2 11 11 . . Electromagnetic 36 | . 5 . 28 3 . . Robot Hit Streak 30 | 3 11 . 30 5 . . Robot Miss Streak 5 | 1 5 . 4 2 . . Penetration Max . | . . . . . . . Secondary Targets 1 | . 1 . . . . . Max Gunslinging Chain 1 | . 1 . . . . . Shots Hit Robots 210 | 6 47 . 137 20 . . Core Hits 139 | 4 21 3 68 43 . . Critical Hits 4 | . . . 4 . . . Critical Kills 2 | . . . 2 . . . Critical Parts Destroyed 2 | . . . 2 . . . Melee Attacks . | . . . . . . . Impact . | . . . . . . . Slashing . | . . . . . . . Piercing . | . . . . . . . Sneak Attacks . | . . . . . . . Combat Hostiles . | . . . . . . . Follow-up Attacks . | . . . . . . . Damage Inflicted 6634 | 60 811 211 3561 1991 . . Guns 2457 | 60 607 . 1684 106 . . Cannons 642 | . . . 452 190 . . Explosions 3530 | . 204 211 1420 1695 . . Melee . | . . . . . . . Ramming 5 | . . . 5 . . . Kinetic 1161 | 24 112 . 919 106 . . Thermal 1719 | 36 461 . 1032 190 . . Explosive 3188 | . 204 211 1356 1417 . . Electromagnetic 561 | . 34 . 249 278 . . Impact . | . . . . . . . Slashing . | . . . . . . . Piercing . | . . . . . . . Highest Corruption 7 | . . . . 7 7 7 Average Corruption 6 | . . . . 6 7 7 Corruption Purged . | . . . . . . . Effects 25 | . . . . 15 9 1 Message Errors 7 | . . . . 3 4 . Matter Fused 3 | . . . . 1 2 . Heat Flow Errors 3 | . . . . 2 1 . Energy Discharges 2 | . . . . 2 . . Parts Rejected 1 | . . . . . . 1 Data Loss (minor) 1 | . . . . . 1 . Data Loss (major) 2 | . . . . 1 1 . Misfires 2 | . . . . 2 . . Targeting Errors 3 | . . . . 3 . . Weapon Failures 1 | . . . . 1 . . Overload Shots . | . . . . . . . Overflow Damage 216 | . 3 8 141 64 . . Projectiles 8 | . . . 6 2 . . Explosions 208 | . 3 8 135 62 . . Melee . | . . . . . . . Knockbacks . | . . . . . . . Impact . | . . . . . . . Kinetic . | . . . . . . . Secondary . | . . . . . . . Self-Inflicted Damage 209 | . 13 . 78 118 . . Shots 10 | . 1 . 4 5 . . Rammed 1 | . . . 1 . . . Targets Rammed 1 | . . . 1 . . . Kicked . | . . . . . . . Crushed . | . . . . . . . Highest Temperature 498 | 20 276 . 498 169 177 11 Average Temperature 89 | 15 83 . 100 60 96 10 Received Heat Transfer 907 | . 129 . 486 220 . 72 Effects 6 | . . . 6 . . . Shutdowns 2 | . . . 2 . . . Interference 2 | . . . 2 . . . Damage (minor) 1 | . . . 1 . . . Damage (major) 1 | . . . 1 . . . Siege Activations . | . . . . . . . Robots Corrupted . | . . . . . . . Combat Hostiles . | . . . . . . . Parts Fried 1 | . . . 1 . . . Impact Corruptions . | . . . . . . . Robots Melted 1 | . 1 . . . . . Combat Hostiles . | . . . . . . . Parts Melted 8 | . 4 . 4 . . . Heat Transferred 3643 | 75 1187 . 2085 296 . . Parts Sabotaged . | . . . . . . . Parts Stolen . | . . . . . . . Parts Stripped . | . . . . . . . Power Chain Reactions 1 | . . . 1 . . . Missiles Intercepted . | . . . . . . . Alert | -11 -10 -10 -9 -9 -9 -8 ------- Run | Scr Mat Min Mat Min Exi Min Peak Influence 742 | 10 158 118 742 292 . . Average Influence 233 | 3 55 110 348 213 . . Maximum Alert Level 3 | . . . 3 1 . . Low Security (%) 57 | 100 100 100 40 32 . 100 Level 1 22 | . . . 19 67 . . Level 2 15 | . . . 30 . . . Level 3 4 | . . . 8 . . . Level 4 . | . . . . . . . Level 5 . | . . . . . . . High Security . | . . . . . . . Max Security . | . . . . . . . Squads Dispatched 7 | . 2 . 5 . . . Investigation 2 | . . . 2 . . . Extermination . | . . . . . . . Reinforcement 5 | . 2 . 3 . . . Assault . | . . . . . . . Garrison . | . . . . . . . Intercept . | . . . . . . . Construction Impeded . | . . . . . . . Haulers Reinforced . | . . . . . . . Stealth | -11 -10 -10 -9 -9 -9 -8 --------- Run | Scr Mat Min Mat Min Exi Min Distress Signals 2 | . . . 2 . . . Communications Jammed . | . . . . . . . Distress Signals . | . . . . . . . Times Spotted 118 | . 20 3 68 24 . 3 Peak Tracking Total 18 | . 4 3 6 18 . 3 Tactical Retreats 11 | . 1 . 10 . . . Traps | -11 -10 -10 -9 -9 -9 -8 ------- Run | Scr Mat Min Mat Min Exi Min Traps Triggered 2 | . . . 2 . . . Indirectly . | . . . . . . . Trap Hack Attempts . | . . . . . . . Triggered . | . . . . . . . Disarmed . | . . . . . . . Reprogrammed . | . . . . . . . Reused . | . . . . . . . Traps Extracted . | . . . . . . . Installed . | . . . . . . . Triggered . | . . . . . . . Machines | -11 -10 -10 -9 -9 -9 -8 ---------- Run | Scr Mat Min Mat Min Exi Min Machines Disabled 8 | . . . 8 . . . Max in Single Turn 1 | . . . 1 . . . Machines Sabotaged . | . . . . . . . Garrisons Compromised . | . . . . . . . Overloaded Fab Kills . | . . . . . . . Fab Network Shutdowns . | . . . . . . . Hacking | -11 -10 -10 -9 -9 -9 -8 --------- Run | Scr Mat Min Mat Min Exi Min Machines Accessed 9 | . 6 . 2 . 1 . Terminals 8 | . 6 . 2 . . . Fabricators . | . . . . . . . Repair Stations . | . . . . . . . Recycling Units . | . . . . . . . Scanalyzers . | . . . . . . . Garrison Access . | . . . . . . . Total Hacks 22 | . 14 . 7 . 1 . Successful 13 | . 9 . 3 . 1 . Failed 9 | . 5 . 4 . . . Catastrophic . | . . . . . . . Database Lockouts . | . . . . . . . Manual 20 | . 13 . 7 . . . Terminals 21 | . 14 . 7 . . . Fabricators . | . . . . . . . Repair Stations . | . . . . . . . Recycling Units . | . . . . . . . Scanalyzers . | . . . . . . . Garrison Access . | . . . . . . . Terminal Hacks 5 | . 3 . 1 . 1 . Record 1 | . . . . . 1 . Part Schematic 1 | . 1 . . . . . Terminal Index 1 | . 1 . . . . . Zone Layout 2 | . 1 . 1 . . . Fabricator Hacks . | . . . . . . . Repair Station Hacks . | . . . . . . . Recycling Unit Hacks . | . . . . . . . Scanalyzer . | . . . . . . . Garrison Access Hacks . | . . . . . . . Unauthorized Hacks 8 | . 6 . 2 . . . Terminals 8 | . 6 . 2 . . . Botnet 6 | . 4 . 2 . . . Disrupt 1 | . 1 . . . . . Operators 1 | . 1 . . . . . Fabricators . | . . . . . . . Repair Stations . | . . . . . . . Recycling Units . | . . . . . . . Scanalyzers . | . . . . . . . Garrison Access . | . . . . . . . Data Cores Recovered . | . . . . . . . Used . | . . . . . . . Hacking Detections 6 | . 4 . 2 . . . Full Trace Events . | . . . . . . . Feedback Events . | . . . . . . . Feedback Blocked . | . . . . . . . Robot Schematics Acquired . | . . . . . . . Robots Built . | . . . . . . . Matter . | . . . . . . . Time . | . . . . . . . Total Robot Build Rating . | . . . . . . . Part Schematics Acquired 1 | . 1 . . . . . Parts Built . | . . . . . . . Matter . | . . . . . . . Time . | . . . . . . . Total Part Build Rating . | . . . . . . . Parts Repaired . | . . . . . . . Time . | . . . . . . . Parts Recycled . | . . . . . . . Recycled Matter . | . . . . . . . Retrieved Matter . | . . . . . . . Retrieved Components . | . . . . . . . Parts Scanalyzed . | . . . . . . . Part Schematics Acquired . | . . . . . . . Parts Damaged . | . . . . . . . Bothacking | -11 -10 -10 -9 -9 -9 -8 ------------ Run | Scr Mat Min Mat Min Exi Min Used RIF Installer . | . . . . . . . Robots Hacked . | . . . . . . . Non-combat . | . . . . . . . Combat . | . . . . . . . Robot Hacks Applied . | . . . . . . . Relay Couplers Released . | . . . . . . . Robots Rewired . | . . . . . . . Allies Hacked . | . . . . . . . Hacks Repelled . | . . . . . . . Allies | -11 -10 -10 -9 -9 -9 -8 -------- Run | Scr Mat Min Mat Min Exi Min Total Allies . | . . . . . . . Largest Group . | . . . . . . . Highest-Rated Group . | . . . . . . . Highest-Rated Ally . | . . . . . . . Total Orders . | . . . . . . . Ally Attacks . | . . . . . . . Total Damage . | . . . . . . . Kills . | . . . . . . . Allies Corrupted . | . . . . . . . Allies Melted . | . . . . . . . Intel | -11 -10 -10 -9 -9 -9 -8 ------- Run | Scr Mat Min Mat Min Exi Min Robot Analysis Total . | . . . . . . . Derelict Logs Recovered 2 | . . . . 2 . . Drone Launches . | . . . . . . . Drone Recoveries . | . . . . . . . Exploration | -11 -10 -10 -9 -9 -9 -8 ------------- Run | Scr Mat Min Mat Min Exi Min Turns Passed 3608 | 73 893 29 1679 595 335 4 Spaces Moved 2480 | 48 704 23 983 447 273 2 Core 2 | 2 . . . . . . Treads 2 | . . . 2 . . . Legs . | . . . . . . . Wheels 2476 | 46 704 23 981 447 273 2 Hover . | . . . . . . . Flight . | . . . . . . . Fastest Speed 50 | 50 90 100 100 110 100 140 Average Speed 109 | 97 100 100 114 111 115 140 Slowest Speed 200 | 100 120 100 200 120 140 140 Overloaded Moves . | . . . . . . . Propulsion Burnouts . | . . . . . . . Robots Hopped . | . . . . . . . Cave-ins Triggered . | . . . . . . . Exploration Rate (%) 45 | 4 87 12 66 85 61 3 Regions Visited 6 Branch Regions 4 Pre-discovered Areas 2 | . . . . 1 1 . Known Exits Taken . | . . . . . . . Unknown Exits Taken 6 | 1 1 1 1 1 1 . Scrap Searched 1 | . . . . 1 . . Spaces Dug 15 | . . 15 . . . . Terrain Destroyed 233 | . 7 15 76 135 . . Melee . | . . . . . . . Projectile 4 | . . . 1 3 . . AOE 229 | . 7 15 75 132 . . Actions | -11 -10 -10 -9 -9 -9 -8 --------- Run | Scr Mat Min Mat Min Exi Min Total 3029 | 63 810 26 1333 500 293 4 Wait 170 | . 26 . 131 13 . . Move 2474 | 47 703 22 982 446 272 2 Hop . | . . . . . . . Pick Up 71 | 6 18 . 32 1 13 1 Fast Attach 13 | 6 1 . 5 . 1 . Attach 30 | . 5 . 17 6 1 1 Detach 6 | . 1 . 4 . 1 . Swap 38 | . 7 2 19 7 3 . Drop 33 | . 6 . 25 . 2 . Fire 193 | 4 43 2 117 27 . . Melee . | . . . . . . . Ram 1 | . . . 1 . . . Kick . | . . . . . . . Crush . | . . . . . . . Escape Stasis . | . . . . . . . Rewire . | . . . . . . . Trap . | . . . . . . . Miscellaneous . | . . . . . . . Route ------- -11/Scrapyard -10/Materials (discovered 4 exits: *Mat x3 / [*Min]) -10/Mines -9/Materials (discovered 2 exits: [*Mat] / [*Min]) -9/Mines -9/Exiles -8/Mines History --------- Turn | Location | Event 10 | -11/Scrapyard | Discovered new exit (range 16) 74 | -11/Scrapyard | Entered Materials 317 | -10/Materials | Build established: Mutant 317 | -10/Materials | Lost 3 parts (1p1n1w) 484 | -10/Materials | Discovered new exit (range 10) 586 | -10/Materials | Discovered new exit (range 3) 781 | -10/Materials | Discovered new exit (range 15) 900 | -10/Materials | Core integrity fell below 50% 953 | -10/Materials | Discovered new exit (range 11) 967 | -10/Materials | Entered Mines 984 | -10/Mines | Discovered new exit (range 11) 996 | -10/Mines | Entered Materials 996 | -9/Materials | Evolved 2 slots: Utility x2 1319 | -9/Materials | Build established: Hauler-Mutant 1819 | -9/Materials | Discovered new exit (range 8) 1869 | -9/Materials | Lost 3 parts (1p2w) 2131 | -9/Materials | Core integrity fell below 50% 2514 | -9/Materials | Discovered new exit (range 8) 2675 | -9/Materials | Entered Mines 2717 | -9/Mines | Learned Materials security intel 2728 | -9/Mines | Assembled infested the area 2733 | -9/Mines | Assisted by a Guerilla fighting off Assembled 2777 | -9/Mines | Lost 5 parts (1p2n2w) 2783 | -9/Mines | Core integrity fell below 20% 2784 | -9/Mines | Destroyed 19 combat bots 2885 | -9/Mines | A weapon hastily lodged in a ceiling crevice suddenly fell to the ground 3245 | -9/Mines | Received a Rocket Launcher from a helpful Derelict 3261 | -9/Mines | Learned location of Storage (-8) 3266 | -9/Mines | Deemed a non-threat by the Exiles lab entrance 3266 | -9/Mines | Discovered new exit (range 5) 3270 | -9/Mines | Entered Exiles 3298 | -9/Exiles | Met 8R-AWN 3313 | -9/Exiles | Met EX-HEX 3376 | -9/Exiles | Met EX-DEC 3395 | -9/Exiles | Learned location of Zion (-6) 3417 | -9/Exiles | Met EX-BIN 3589 | -9/Exiles | Discovered new exit (range 12) 3605 | -9/Exiles | Entered Mines 3609 | -8/Mines | Destroyed by G-47 Trooper with Particle Gun Last Messages --------------- 03481_ Acquired Humpback. 03495_ Acquired Missile Launcher. 03504_ Acquired Imp. Assault Rifle. 03506_ Acquired Lgt. Nuclear Core. 03514_ Acquired Lgt. Treads. 03517_ Acquired Lrg. Storage Unit. 03519_ Acquired EM Pulse Gun. 03521_ Acquired Wheel. 03524_ Acquired Lrg. Storage Unit. 03531_ Acquired Lgt. Armor Plating. 03546_ Acquired Humpback. 03548_ System corrupted: Matter fused (-8). 03549_ Acquired Humpback. 03568_ BJFTDP,/LE4JZDU/Q DY5BTM 03589_ EXIT=FOUND LOCATION=UNKNOWN GOAL=ESCAPE 03607_ Lgt. Nuclear Core destroyed. 03609_ System corrupted: Lgt. Armor Plating rejected. 03609_ Acquired Lgt. Armor Plating. Map ----- +----------------------------------------------------+ | ???????????????????????????????? | | ???????????????????????????????? | | ???????????????????????????????? | | ???????????????????????????????? | | ???????????????????????????????? | | ???????????????????????????????? | | ???????????????????????????????? | | ???????????????????????????????? | | ???????????????????????????????? | | ???????????????????????????????? | | ???????????????????????????????? | | ???????????????????????????????? | | ???????????????????????????????? | | ???????????????????#???????????? | | ???????????????????# ??????????? | | ???????????????????? ??????????? | | ???????????????????? ??????????? | | ???????????????????? ?????????? | | ????????????????????# ?????????? | | ????????????????????# ?????????? | | ???????????????????## ########?? | | ???????????????????# #?? | | ???????????????????# """ #?? | | ???????????????????# g """ #?? | | ???????????????????# g """ #?? | | ???????????????????# g @ #?? | | ???????????????????# #?? | | ???????????????????######## ##?? | | ??????????????????????????? #??? | | ????????????????????????????#??? | | ???????????????????????????????? | | ???????????????????????????????? | | ???????????????????????????????? | | ???????????????????????????????? | | ???????????????????????????????? | | ???????????????????????????????? | | ???????????????????????????????? | | ???????????????????????????????? | | ???????????????????????????????? | | ???????????????????????????????? | | ???????????????????????????????? | | ???????????????????????????????? | | ???????????????????????????????? | | ???????????????????????????????? | | ???????????????????????????????? | | ???????????????????????????????? | | ???????????????????????????????? | | ???????????????????????????????? | | ???????????????????????????????? | | ???????????????????????????????? | +----------------------------------------------------+ Best States ------------- Heat Dissipation 28 Energy Generation 14 Energy Capacity 250 Matter Stores 300 Matter Capacity 300 Sight Range 16 Terrain Scan Range 16 Terrain Scan Density 10 Armor Coverage 150 Evasion (%) 42 Recoil Reduction 1 Item Schematics ----------------- Hcp. Storage Unit | -10/Materials | Hacked Robot Schematics ------------------ None Fabricated ------------ Nothing Alien Tech Used ----------------- None Achievements -------------- None Challenges ------------ None Game ------ Seed SalvageMomentumSegregator Manual? 0 Play Time 00:25:15 Cumulative 1078.4 hours Start 2020.08.11 @ 14:18:46 End 2020.08.11 @ 14:49:35 Sessions 1 Manual Loads 0 Difficulty Rogue Special Mode None Game No. 408 Rogue 408 Adventurer 0 Explorer 0 Win Type - Total 25 Types 13/1/7/0/0/0/4 Lore% 96 Gallery% 98 Achievement% 83 Wizard Run 0 Options --------- ASCII 0 Keyboard 0 Movement Vi Keybinds 0 Fullscreen 0 Font 12/Crisp Map View 76x50 Tactical HUD 1 Map Filters NONE Filters NONE Steam 1 RUN: 407c61c2-f548-48f3-aa20-833faa5e930d